{"text_format":"3","workbook":"xlsx","n_sheets":9,"sheets":["Alfred Nzo","Amathole","Buffalo City","Chris Hani","JOE GQABI","Nelson Mandela Metro","OR Tambo District","Sarah Baartman","Summary Pricing Schedule"],"read":"whole","date_system":"1900"}

{"sheet":"Alfred Nzo","index":0,"n_rows":42,"n_cols":8,"rows_kept":42,"merged":[[0,0,0,2],[39,0,39,4],[40,0,40,4],[41,0,41,4]]}
["PRICING SCHEDULE NURSES UNIFORM (inclusive of Delivery Costs)"]
[null,"ALFRED NZO DISTRICT"]
["Item","Spec title","Specification number","Estimated Quantities","Unit Price Excl VAT","Total Price Excl VAT Year 1","Total Price Excl VAT Year 2","Total Price Excl VAT Year 3"]
[1,"Dress, A-Line (Style 1)","DoH 001",1220]
[2,"Dress (Style 2)","DoH 002",1220]
[3,"Dress Pleated (Style 3)","DoH 003",1220]
[4,"Slacks, Pull-on type (Style 1)","DoH 004",1220]
[5,"Slacks, Shaped waistband (Style 2)","DoH 005",1220]
[6," Slacks, ¼ Side elasticated waist (Style 3)","DoH 006",1220]
[7,"Skirt, ¼ Side elasticated waist (Style 1)","DoH 007",1220]
[8," Skirt, Shaped waistband (Style 2)","DoH 008",1220]
[9," Jacket, Women, S/S","DoH 009",1220]
[10,"Jacket, Women, L/S","DoH 010",1220]
[11,"Jacket, Women, Sleeveless (Gilet)","DoH 011",1220]
[12,"Blouse, Women, Sleeveless (Without Loops and Buttons)","DoH 012.1",1220]
[13,"Blouse, Women, Sleeveless (With Loops and Buttons)","DoH 012.2",1220]
[14,"Blouse, Women, S/S (Without Loops and Buttons)","DoH 013.1",1220]
[15,"Blouse, Women, S/S (With Loops and Buttons)","DoH 013.2",1220]
[16,"Shirt, Women, S/S, ","DoH 014",1220]
[17,"Shirt, Women, L/S ","DoH 014",1220]
[18,"Shirt, Women,¾ Sleeve ","DoH 014",1220]
[19,"Working Top, Women, Shawl Collar, Concealed Button Stand (Style 1) ","DoH 015",1220]
[20,"Working Top, Women, Shawl Collar, Front Button Fastening (Style 4) ","DoH 026",1220]
[21,"Working Top, Women, Round Neck (Style 2) ","DoH 016",1220]
[22,"Working Top, Women, Shirt Collar (Style 3)","DoH 017",1220]
[23," Jacket, Men ","DoH 018",230]
[24,"Trousers, Men, Plain Waistband","DoH 019",230]
[25,"Trousers, Men, Concealed Elasticated Waistband","DoH 020",230]
[26," Shirt, L/S  Standard Fit (2 Collars)","DoH 021",230]
[27," Shirt, S/S, Standard Fit (2 Collars)","DoH 021",230]
[28,"Shirt, L/S Slim Fit (2 Collars)","DoH 022",230]
[29,"Shirt, S/S, Slim Fit (2 Collars)","DoH 022",230]
[30,"Working Top, Men, Round Neck (Style 1)","DoH 023",230]
[31,"Working Top, Men, Shirt Collar (Style 2)","DoH 024",230]
[32,"Working Top, Men, Gladneck Collar (Style 3) ","DoH 025",230]
[33,"Unisex Belt","DOH 027",1450]
[34,"Ladies Shoes","DOH 028",1220]
[35,"Mens Shoes","DOH 029",230]
[]
["TOTAL BID PRICE EXCL VAT",{"$nulls":4},{"$f":"SUM(F4:F39)","v":0},{"$f":"SUM(G4:G35)","v":0},{"$f":"SUM(H4:H35)","v":0}]
["VAT @15 %",{"$nulls":4},{"$f":"F3223%","v":0},{"$f":"G3222%","v":0},{"$f":"H3222%","v":0}]
["TOTAL BID PRICE INCL VAT",{"$nulls":4},{"$f":"F40+F41","v":0},{"$f":"G40+G41","v":0},0]

{"sheet":"Amathole","index":1,"n_rows":42,"n_cols":8,"rows_kept":42,"merged":[[0,0,0,2],[39,0,39,4],[40,0,40,4],[41,0,41,4]]}
["PRICING SCHEDULE NURSES UNIFORM (inclusive of Delivery Costs)"]
[null,"AMATHOLE DISTRICT"]
["Item","Spec title","Specification number","Estimated Quantities","Unit Price Excl VAT","Total Price Excl VAT","Total Price Excl VAT Year 2","Total Price Excl VAT Year 3"]
[1,"Dress, A-Line (Style 1)","DoH 001",1740]
[2,"Dress (Style 2)","DoH 002",1740]
[3,"Dress Pleated (Style 3)","DoH 003",1740]
[4,"Slacks, Pull-on type (Style 1)","DoH 004",1740]
[5,"Slacks, Shaped waistband (Style 2)","DoH 005",1740]
[6," Slacks, ¼ Side elasticated waist (Style 3)","DoH 006",1740]
[7,"Skirt, ¼ Side elasticated waist (Style 1)","DoH 007",1740]
[8," Skirt, Shaped waistband (Style 2)","DoH 008",1740]
[9," Jacket, Women, S/S","DoH 009",1740]
[10,"Jacket, Women, L/S","DoH 010",1740]
[11,"Jacket, Women, Sleeveless (Gilet)","DoH 011",1740]
[12,"Blouse, Women, Sleeveless (Without Loops and Buttons)","DoH 012.1",1740]
[13,"Blouse, Women, Sleeveless (With Loops and Buttons)","DoH 012.2",1740]
[14,"Blouse, Women, S/S (Without Loops and Buttons)","DoH 013.1",1740]
[15,"Blouse, Women, S/S (With Loops and Buttons)","DoH 013.2",1740]
[16,"Shirt, Women, S/S, ","DoH 014",1740]
[17,"Shirt, Women, L/S ","DoH 014",1740]
[18,"Shirt, Women,¾ Sleeve ","DoH 014",1740]
[19,"Working Top, Women, Shawl Collar, Concealed Button Stand (Style 1) ","DoH 015",1740]
[20,"Working Top, Women, Shawl Collar, Front Button Fastening (Style 4) ","DoH 026",1740]
[21,"Working Top, Women, Round Neck (Style 2) ","DoH 016",1740]
[22,"Working Top, Women, Shirt Collar (Style 3)","DoH 017",1740]
[23," Jacket, Men ","DoH 018",380]
[24,"Trousers, Men, Plain Waistband","DoH 019",380]
[25,"Trousers, Men, Concealed Elasticated Waistband","DoH 020",380]
[26," Shirt, L/S  Standard Fit (2 Collars)","DoH 021",380]
[27," Shirt, S/S, Standard Fit (2 Collars)","DoH 021",380]
[28,"Shirt, L/S Slim Fit (2 Collars)","DoH 022",380]
[29,"Shirt, S/S, Slim Fit (2 Collars)","DoH 022",380]
[30,"Working Top, Men, Round Neck (Style 1)","DoH 023",380]
[31,"Working Top, Men, Shirt Collar (Style 2)","DoH 024",380]
[32,"Working Top, Men, Gladneck Collar (Style 3) ","DoH 025",380]
[33,"Unisex Belt","DOH 027",2120]
[34,"Ladies Shoes","DOH 028",1740]
[35,"Mens Shoes","DOH 029",380]
[]
["TOTAL BID PRICE EXCL VAT",{"$nulls":4},{"$f":"SUM(F4:F39)","v":0},{"$f":"SUM(G4:G35)","v":0},{"$f":"SUM(H4:H35)","v":0}]
["VAT @15 %",{"$nulls":4},{"$f":"F3223%","v":0},{"$f":"G3222%","v":0},{"$f":"H3222%","v":0}]
["TOTAL BID PRICE INCL VAT",{"$nulls":4},{"$f":"F40+F41","v":0},{"$f":"G40+G41","v":0},0]

{"sheet":"Buffalo City","index":2,"n_rows":42,"n_cols":8,"rows_kept":42,"merged":[[0,0,0,2],[39,0,39,4],[40,0,40,4],[41,0,41,4]]}
["PRICING SCHEDULE NURSES UNIFORM (inclusive of Delivery Costs)"]
[null,"BUFFALO CITY METRO"]
["Item","Spec title","Specification number","Estimated Quantities","Unit Price Excl VAT","Total Price Excl VAT","Total Price Excl VAT Year 2","Total Price Excl VAT Year 3"]
[1,"Dress, A-Line (Style 1)","DoH 001",2228]
[2,"Dress (Style 2)","DoH 002",2228]
[3,"Dress Pleated (Style 3)","DoH 003",2228]
[4,"Slacks, Pull-on type (Style 1)","DoH 004",2228]
[5,"Slacks, Shaped waistband (Style 2)","DoH 005",2228]
[6," Slacks, ¼ Side elasticated waist (Style 3)","DoH 006",2228]
[7,"Skirt, ¼ Side elasticated waist (Style 1)","DoH 007",2228]
[8," Skirt, Shaped waistband (Style 2)","DoH 008",2228]
[9," Jacket, Women, S/S","DoH 009",2228]
[10,"Jacket, Women, L/S","DoH 010",2228]
[11,"Jacket, Women, Sleeveless (Gilet)","DoH 011",2228]
[12,"Blouse, Women, Sleeveless (Without Loops and Buttons)","DoH 012.1",2228]
[13,"Blouse, Women, Sleeveless (With Loops and Buttons)","DoH 012.2",2228]
[14,"Blouse, Women, S/S (Without Loops and Buttons)","DoH 013.1",2228]
[15,"Blouse, Women, S/S (With Loops and Buttons)","DoH 013.2",2228]
[16,"Shirt, Women, S/S, ","DoH 014",2228]
[17,"Shirt, Women, L/S ","DoH 014",2228]
[18,"Shirt, Women,¾ Sleeve ","DoH 014",2228]
[19,"Working Top, Women, Shawl Collar, Concealed Button Stand (Style 1) ","DoH 015",2228]
[20,"Working Top, Women, Shawl Collar, Front Button Fastening (Style 4) ","DoH 026",2228]
[21,"Working Top, Women, Round Neck (Style 2) ","DoH 016",2228]
[22,"Working Top, Women, Shirt Collar (Style 3)","DoH 017",2228]
[23," Jacket, Men ","DoH 018",345]
[24,"Trousers, Men, Plain Waistband","DoH 019",345]
[25,"Trousers, Men, Concealed Elasticated Waistband","DoH 020",345]
[26," Shirt, L/S  Standard Fit (2 Collars)","DoH 021",345]
[27," Shirt, S/S, Standard Fit (2 Collars)","DoH 021",345]
[28,"Shirt, L/S Slim Fit (2 Collars)","DoH 022",345]
[29,"Shirt, S/S, Slim Fit (2 Collars)","DoH 022",345]
[30,"Working Top, Men, Round Neck (Style 1)","DoH 023",345]
[31,"Working Top, Men, Shirt Collar (Style 2)","DoH 024",345]
[32,"Working Top, Men, Gladneck Collar (Style 3) ","DoH 025",345]
[33,"Unisex Belt","DOH 027",2573]
[34,"Ladies Shoes","DOH 028",2228]
[35,"Mens Shoes","DOH 029",345]
[]
["TOTAL BID PRICE EXCL VAT",{"$nulls":4},{"$f":"SUM(F4:F39)","v":0},{"$f":"SUM(G4:G35)","v":0},{"$f":"SUM(H4:H35)","v":0}]
["VAT @15 %",{"$nulls":4},{"$f":"F3223%","v":0},{"$f":"G3222%","v":0},{"$f":"H3222%","v":0}]
["TOTAL BID PRICE INCL VAT",{"$nulls":4},{"$f":"F40+F41","v":0},{"$f":"G40+G41","v":0},0]

{"sheet":"Chris Hani","index":3,"n_rows":42,"n_cols":8,"rows_kept":42,"merged":[[0,0,0,2],[39,0,39,4],[40,0,40,4],[41,0,41,4]]}
["PRICING SCHEDULE NURSES UNIFORM (inclusive of Delivery Costs)"]
[null,"CHRIS HANI DISTRICT"]
["Item","Spec title","Specification number","Estimated Quantities","Unit Price Excl VAT","Total Price Excl VAT Year 1","Total Price Excl VAT Year 2","Total Price Excl VAT Year 3"]
[1,"Dress, A-Line (Style 1)","DoH 001",1665]
[2,"Dress (Style 2)","DoH 002",1665]
[3,"Dress Pleated (Style 3)","DoH 003",1665]
[4,"Slacks, Pull-on type (Style 1)","DoH 004",1665]
[5,"Slacks, Shaped waistband (Style 2)","DoH 005",1665]
[6," Slacks, ¼ Side elasticated waist (Style 3)","DoH 006",1665]
[7,"Skirt, ¼ Side elasticated waist (Style 1)","DoH 007",1665]
[8," Skirt, Shaped waistband (Style 2)","DoH 008",1665]
[9," Jacket, Women, S/S","DoH 009",1665]
[10,"Jacket, Women, L/S","DoH 010",1665]
[11,"Jacket, Women, Sleeveless (Gilet)","DoH 011",1665]
[12,"Blouse, Women, Sleeveless (Without Loops and Buttons)","DoH 012.1",1665]
[13,"Blouse, Women, Sleeveless (With Loops and Buttons)","DoH 012.2",1665]
[14,"Blouse, Women, S/S (Without Loops and Buttons)","DoH 013.1",1665]
[15,"Blouse, Women, S/S (With Loops and Buttons)","DoH 013.2",1665]
[16,"Shirt, Women, S/S, ","DoH 014",1665]
[17,"Shirt, Women, L/S ","DoH 014",1665]
[18,"Shirt, Women,¾ Sleeve ","DoH 014",1665]
[19,"Working Top, Women, Shawl Collar, Concealed Button Stand (Style 1) ","DoH 015",1665]
[20,"Working Top, Women, Shawl Collar, Front Button Fastening (Style 4) ","DoH 026",1665]
[21,"Working Top, Women, Round Neck (Style 2) ","DoH 016",1665]
[22,"Working Top, Women, Shirt Collar (Style 3)","DoH 017",1665]
[23," Jacket, Men ","DoH 018",420]
[24,"Trousers, Men, Plain Waistband","DoH 019",420]
[25,"Trousers, Men, Concealed Elasticated Waistband","DoH 020",420]
[26," Shirt, L/S  Standard Fit (2 Collars)","DoH 021",420]
[27," Shirt, S/S, Standard Fit (2 Collars)","DoH 021",420]
[28,"Shirt, L/S Slim Fit (2 Collars)","DoH 022",420]
[29,"Shirt, S/S, Slim Fit (2 Collars)","DoH 022",420]
[30,"Working Top, Men, Round Neck (Style 1)","DoH 023",420]
[31,"Working Top, Men, Shirt Collar (Style 2)","DoH 024",420]
[32,"Working Top, Men, Gladneck Collar (Style 3) ","DoH 025",420]
[33,"Unisex Belt","DOH 027",2085]
[34,"Ladies Shoes","DOH 028",1665]
[35,"Mens Shoes","DOH 029",420]
[]
["TOTAL BID PRICE EXCL VAT",{"$nulls":4},{"$f":"SUM(F4:F39)","v":0},{"$f":"SUM(G4:G35)","v":0},{"$f":"SUM(H4:H35)","v":0}]
["VAT @15 %",{"$nulls":4},{"$f":"F3223%","v":0},{"$f":"G3222%","v":0},{"$f":"H3222%","v":0}]
["TOTAL BID PRICE INCL VAT",{"$nulls":4},{"$f":"F40+F41","v":0},{"$f":"G40+G41","v":0},0]

{"sheet":"JOE GQABI","index":4,"n_rows":42,"n_cols":8,"rows_kept":42,"merged":[[0,0,0,2],[39,0,39,4],[40,0,40,4],[41,0,41,4]]}
["PRICING SCHEDULE NURSES UNIFORM (inclusive of Delivery Costs)"]
[null,"JOE GQABI DISTRICT"]
["Item","Spec title","Specification number","Estimated Quantities","Unit Price Excl VAT","Total Price Excl VAT Year 1","Total Price Excl VAT Year 2","Total Price Excl VAT Year 3"]
[1,"Dress, A-Line (Style 1)","DoH 001",710]
[2,"Dress (Style 2)","DoH 002",710]
[3,"Dress Pleated (Style 3)","DoH 003",710]
[4,"Slacks, Pull-on type (Style 1)","DoH 004",710]
[5,"Slacks, Shaped waistband (Style 2)","DoH 005",710]
[6," Slacks, ¼ Side elasticated waist (Style 3)","DoH 006",710]
[7,"Skirt, ¼ Side elasticated waist (Style 1)","DoH 007",710]
[8," Skirt, Shaped waistband (Style 2)","DoH 008",710]
[9," Jacket, Women, S/S","DoH 009",710]
[10,"Jacket, Women, L/S","DoH 010",710]
[11,"Jacket, Women, Sleeveless (Gilet)","DoH 011",710]
[12,"Blouse, Women, Sleeveless (Without Loops and Buttons)","DoH 012.1",710]
[13,"Blouse, Women, Sleeveless (With Loops and Buttons)","DoH 012.2",710]
[14,"Blouse, Women, S/S (Without Loops and Buttons)","DoH 013.1",710]
[15,"Blouse, Women, S/S (With Loops and Buttons)","DoH 013.2",710]
[16,"Shirt, Women, S/S, ","DoH 014",710]
[17,"Shirt, Women, L/S ","DoH 014",710]
[18,"Shirt, Women,¾ Sleeve ","DoH 014",710]
[19,"Working Top, Women, Shawl Collar, Concealed Button Stand (Style 1) ","DoH 015",710]
[20,"Working Top, Women, Shawl Collar, Front Button Fastening (Style 4) ","DoH 026",710]
[21,"Working Top, Women, Round Neck (Style 2) ","DoH 016",710]
[22,"Working Top, Women, Shirt Collar (Style 3)","DoH 017",710]
[23," Jacket, Men ","DoH 018",160]
[24,"Trousers, Men, Plain Waistband","DoH 019",160]
[25,"Trousers, Men, Concealed Elasticated Waistband","DoH 020",160]
[26," Shirt, L/S  Standard Fit (2 Collars)","DoH 021",160]
[27," Shirt, S/S, Standard Fit (2 Collars)","DoH 021",160]
[28,"Shirt, L/S Slim Fit (2 Collars)","DoH 022",160]
[29,"Shirt, S/S, Slim Fit (2 Collars)","DoH 022",160]
[30,"Working Top, Men, Round Neck (Style 1)","DoH 023",160]
[31,"Working Top, Men, Shirt Collar (Style 2)","DoH 024",160]
[32,"Working Top, Men, Gladneck Collar (Style 3) ","DoH 025",160]
[33,"Unisex Belt","DOH 027",870]
[34,"Ladies Shoes","DOH 028",710]
[35,"Mens Shoes","DOH 029",160]
[]
["TOTAL BID PRICE EXCL VAT",{"$nulls":4},{"$f":"SUM(F4:F39)","v":0},{"$f":"SUM(G4:G35)","v":0},{"$f":"SUM(H4:H35)","v":0}]
["VAT @15 %",{"$nulls":4},{"$f":"F3223%","v":0},{"$f":"G3222%","v":0},{"$f":"H3222%","v":0}]
["TOTAL BID PRICE INCL VAT",{"$nulls":4},{"$f":"F40+F41","v":0},{"$f":"G40+G41","v":0},0]

{"sheet":"Nelson Mandela Metro","index":5,"n_rows":42,"n_cols":8,"rows_kept":42,"merged":[[0,0,0,2],[39,0,39,4],[40,0,40,4],[41,0,41,4]]}
["PRICING SCHEDULE NURSES UNIFORM (inclusive of Delivery Costs)"]
[null,"NELSON MANDELA METRO"]
["Item","Spec title","Specification number","Estimated Quantities","Unit Price Excl VAT","Total Price Excl VAT Year 1","Total Price Excl VAT Year 2","Total Price Excl VAT Year 3"]
[1,"Dress, A-Line (Style 1)","DoH 001",2090]
[2,"Dress (Style 2)","DoH 002",2090]
[3,"Dress Pleated (Style 3)","DoH 003",2090]
[4,"Slacks, Pull-on type (Style 1)","DoH 004",2090]
[5,"Slacks, Shaped waistband (Style 2)","DoH 005",2090]
[6," Slacks, ¼ Side elasticated waist (Style 3)","DoH 006",2090]
[7,"Skirt, ¼ Side elasticated waist (Style 1)","DoH 007",2090]
[8," Skirt, Shaped waistband (Style 2)","DoH 008",2090]
[9," Jacket, Women, S/S","DoH 009",2090]
[10,"Jacket, Women, L/S","DoH 010",2090]
[11,"Jacket, Women, Sleeveless (Gilet)","DoH 011",2090]
[12,"Blouse, Women, Sleeveless (Without Loops and Buttons)","DoH 012.1",2090]
[13,"Blouse, Women, Sleeveless (With Loops and Buttons)","DoH 012.2",2090]
[14,"Blouse, Women, S/S (Without Loops and Buttons)","DoH 013.1",2090]
[15,"Blouse, Women, S/S (With Loops and Buttons)","DoH 013.2",2090]
[16,"Shirt, Women, S/S, ","DoH 014",2090]
[17,"Shirt, Women, L/S ","DoH 014",2090]
[18,"Shirt, Women,¾ Sleeve ","DoH 014",2090]
[19,"Working Top, Women, Shawl Collar, Concealed Button Stand (Style 1) ","DoH 015",2090]
[20,"Working Top, Women, Shawl Collar, Front Button Fastening (Style 4) ","DoH 026",2090]
[21,"Working Top, Women, Round Neck (Style 2) ","DoH 016",2090]
[22,"Working Top, Women, Shirt Collar (Style 3)","DoH 017",2090]
[23," Jacket, Men ","DoH 018",230]
[24,"Trousers, Men, Plain Waistband","DoH 019",230]
[25,"Trousers, Men, Concealed Elasticated Waistband","DoH 020",230]
[26," Shirt, L/S  Standard Fit (2 Collars)","DoH 021",230]
[27," Shirt, S/S, Standard Fit (2 Collars)","DoH 021",230]
[28,"Shirt, L/S Slim Fit (2 Collars)","DoH 022",230]
[29,"Shirt, S/S, Slim Fit (2 Collars)","DoH 022",230]
[30,"Working Top, Men, Round Neck (Style 1)","DoH 023",230]
[31,"Working Top, Men, Shirt Collar (Style 2)","DoH 024",230]
[32,"Working Top, Men, Gladneck Collar (Style 3) ","DoH 025",230]
[33,"Unisex Belt","DOH 027",2320]
[34,"Ladies Shoes","DOH 028",2090]
[35,"Mens Shoes","DOH 029",230]
[]
["TOTAL BID PRICE EXCL VAT",{"$nulls":4},{"$f":"SUM(F4:F39)","v":0},{"$f":"SUM(G4:G35)","v":0},{"$f":"SUM(H4:H35)","v":0}]
["VAT @15 %",{"$nulls":4},{"$f":"F3223%","v":0},{"$f":"G3222%","v":0},{"$f":"H3222%","v":0}]
["TOTAL BID PRICE INCL VAT",{"$nulls":4},{"$f":"F40+F41","v":0},{"$f":"G40+G41","v":0},0]

{"sheet":"OR Tambo District","index":6,"n_rows":42,"n_cols":8,"rows_kept":42,"merged":[[0,0,0,2],[39,0,39,4],[40,0,40,4],[41,0,41,4]]}
["PRICING SCHEDULE NURSES UNIFORM (inclusive of Delivery Costs)"]
[null,"OR TAMBO DISTRICT"]
["Item","Spec title","Specification number","Estimated Quantities","Unit Price Excl VAT","Total Price Excl VAT Year 1","Total Price Excl VAT Year 2","Total Price Excl VAT Year 3"]
[1,"Dress, A-Line (Style 1)","DoH 001",3820]
[2,"Dress (Style 2)","DoH 002",3820]
[3,"Dress Pleated (Style 3)","DoH 003",3820]
[4,"Slacks, Pull-on type (Style 1)","DoH 004",3820]
[5,"Slacks, Shaped waistband (Style 2)","DoH 005",3820]
[6," Slacks, ¼ Side elasticated waist (Style 3)","DoH 006",3820]
[7,"Skirt, ¼ Side elasticated waist (Style 1)","DoH 007",3820]
[8," Skirt, Shaped waistband (Style 2)","DoH 008",3820]
[9," Jacket, Women, S/S","DoH 009",3820]
[10,"Jacket, Women, L/S","DoH 010",3820]
[11,"Jacket, Women, Sleeveless (Gilet)","DoH 011",3820]
[12,"Blouse, Women, Sleeveless (Without Loops and Buttons)","DoH 012.1",3820]
[13,"Blouse, Women, Sleeveless (With Loops and Buttons)","DoH 012.2",3820]
[14,"Blouse, Women, S/S (Without Loops and Buttons)","DoH 013.1",3820]
[15,"Blouse, Women, S/S (With Loops and Buttons)","DoH 013.2",3820]
[16,"Shirt, Women, S/S, ","DoH 014",3820]
[17,"Shirt, Women, L/S ","DoH 014",3820]
[18,"Shirt, Women,¾ Sleeve ","DoH 014",3820]
[19,"Working Top, Women, Shawl Collar, Concealed Button Stand (Style 1) ","DoH 015",3820]
[20,"Working Top, Women, Shawl Collar, Front Button Fastening (Style 4) ","DoH 026",3820]
[21,"Working Top, Women, Round Neck (Style 2) ","DoH 016",3820]
[22,"Working Top, Women, Shirt Collar (Style 3)","DoH 017",3820]
[23," Jacket, Men ","DoH 018",720]
[24,"Trousers, Men, Plain Waistband","DoH 019",720]
[25,"Trousers, Men, Concealed Elasticated Waistband","DoH 020",720]
[26," Shirt, L/S  Standard Fit (2 Collars)","DoH 021",720]
[27," Shirt, S/S, Standard Fit (2 Collars)","DoH 021",720]
[28,"Shirt, L/S Slim Fit (2 Collars)","DoH 022",720]
[29,"Shirt, S/S, Slim Fit (2 Collars)","DoH 022",720]
[30,"Working Top, Men, Round Neck (Style 1)","DoH 023",720]
[31,"Working Top, Men, Shirt Collar (Style 2)","DoH 024",720]
[32,"Working Top, Men, Gladneck Collar (Style 3) ","DoH 025",720]
[33,"Unisex Belt","DOH 027",4540]
[34,"Ladies Shoes","DOH 028",3820]
[35,"Mens Shoes","DOH 029",720]
[]
["TOTAL BID PRICE EXCL VAT",{"$nulls":4},{"$f":"SUM(F5:F39)","v":0},{"$f":"SUM(G5:G39)","v":0},{"$f":"SUM(H5:H39)","v":0}]
["VAT @15 %",{"$nulls":4},{"$f":"F3223%","v":0},{"$f":"G3223%","v":0},0]
["TOTAL BID PRICE INCL VAT",{"$nulls":4},{"$f":"F40+F41","v":0},{"$f":"G40+G41","v":0},0]

{"sheet":"Sarah Baartman","index":7,"n_rows":44,"n_cols":8,"rows_kept":44,"merged":[[0,0,0,2],[41,0,41,4],[42,0,42,4],[43,0,43,4]]}
["PRICING SCHEDULE NURSES UNIFORM (inclusive of Delivery Costs)"]
[null,"SARAH BAARTMAN DISTRICT"]
["Item","Spec title","Item number","Estimated Quantities","Unit Price Excl VAT","Total Price Excl VAT Year 1","Total Price Excl VAT Year 2","Total Price Excl VAT Year 3"]
[1,"Dress, A-Line (Style 1)","DoH 001",990]
[2,"Dress (Style 2)","DoH 002",990]
[3,"Dress Pleated (Style 3)","DoH 003",990]
[4,"Slacks, Pull-on type (Style 1)","DoH 004",990]
[5,"Slacks, Shaped waistband (Style 2)","DoH 005",990]
[6," Slacks, ¼ Side elasticated waist (Style 3)","DoH 006",990]
[7,"Skirt, ¼ Side elasticated waist (Style 1)","DoH 007",990]
[8," Skirt, Shaped waistband (Style 2)","DoH 008",990]
[9," Jacket, Women, S/S","DoH 009",990]
[10,"Jacket, Women, L/S","DoH 010",990]
[11,"Jacket, Women, Sleeveless (Gilet)","DoH 011",990]
[12,"Blouse, Women, Sleeveless (Without Loops and Buttons)","DoH 012.1",990]
[13,"Blouse, Women, Sleeveless (With Loops and Buttons)","DoH 012.2",990]
[14,"Blouse, Women, S/S (Without Loops and Buttons)","DoH 013.1",990]
[15,"Blouse, Women, S/S (With Loops and Buttons)","DoH 013.2",990]
[16,"Shirt, Women, S/S, ","DoH 014.1",990]
[17,"Shirt, Women, L/S ","DoH 014.2",990]
[18,"Shirt, Women,¾ Sleeve ","DoH 014.3",990]
[19,"Working Top, Women, Shawl Collar, Concealed Button Stand (Style 1) ","DoH 015",990]
[20,"Working Top, Women, Shawl Collar, Front Button Fastening (Style 4) ","DoH 026",990]
[21,"Working Top, Women, Round Neck (Style 2) ","DoH 016",990]
[22,"Working Top, Women, Shirt Collar (Style 3)","DoH 017",990]
[23," Jacket, Men ","DoH 018",220]
[24,"Trousers, Men, Plain Waistband","DoH 019",220]
[25,"Trousers, Men, Concealed Elasticated Waistband","DoH 020",220]
[26," Shirt, L/S  Standard Fit (2 Collars)","DoH 021.1",220]
[27," Shirt, S/S, Standard Fit (2 Collars)","DoH 021.2",220]
[28,"Shirt, L/S Slim Fit (2 Collars)","DoH 022.1",220]
[29,"Shirt, S/S, Slim Fit (2 Collars)","DoH 022.2",220]
[30,"Working Top, Men, Round Neck (Style 1)","DoH 023",220]
[31,"Working Top, Men, Shirt Collar (Style 2)","DoH 024",220]
[32,"Working Top, Men, Gladneck Collar (Style 3) ","DoH 025",220]
[33,"Unisex Belt","DOH 027",1210]
[34,"Ladies Shoes","DOH 028",990]
[35,"Mens Shoes","DOH 029",220]
[]
[]
[]
["TOTAL BID PRICE EXCL VAT",{"$nulls":4},{"$f":"SUM(F4:F41)","v":0},{"$f":"SUM(G4:G41)","v":0},0]
["VAT @15 %",{"$nulls":4},{"$f":"F3225%","v":0},{"$f":"G3225%","v":0},0]
["TOTAL BID PRICE INCL VAT",{"$nulls":4},{"$f":"F42+F43","v":0},{"$f":"G42+G43","v":0},0]

{"sheet":"Summary Pricing Schedule","index":8,"n_rows":15,"n_cols":4,"rows_kept":15}
["PRICING SCHEDULE NURSES UNIFORM"]
["DISTRICT","Pricing Year 1","Pricing Year 2","Pricing Year 3"]
[]
["ALFRED NZO DISTRICT",{"$f":"'Alfred Nzo'!F40","v":0},{"$f":"'Alfred Nzo'!G40","v":0},{"$f":"'Alfred Nzo'!H40","v":0}]
["AMATHOLE DISTRICT",{"$f":"Amathole!F40","v":0},{"$f":"Amathole!G40","v":0},{"$f":"Amathole!H40","v":0}]
["BUFFALO CITY METRO",{"$f":"'Buffalo City'!F40","v":0},{"$f":"'Buffalo City'!G40","v":0},{"$f":"'Buffalo City'!H40","v":0}]
["CHRIS HANI DISTRICT",{"$f":"'Chris Hani'!F40","v":0},{"$f":"'Chris Hani'!G40","v":0},{"$f":"'Chris Hani'!H40","v":0}]
["JOE GQABI DISTRICT",{"$f":"'JOE GQABI'!F40","v":0},{"$f":"'JOE GQABI'!G40","v":0},{"$f":"'JOE GQABI'!H40","v":0}]
["NELSON MANDELA METRO",{"$f":"'Nelson Mandela Metro'!F40","v":0},{"$f":"'Nelson Mandela Metro'!G40","v":0},{"$f":"'Nelson Mandela Metro'!H40","v":0}]
["OR TAMBO DISTRICT",{"$f":"'OR Tambo District'!F40","v":0},{"$f":"'OR Tambo District'!G40","v":0},{"$f":"'OR Tambo District'!H40","v":0}]
["SARAH BAARTMAN DISTRICT",{"$f":"'Sarah Baartman'!F42","v":0},{"$f":"'Sarah Baartman'!G42","v":0},{"$f":"'Sarah Baartman'!H42","v":0}]
[]
["TOTAL BID PRICE EXCL VAT",{"$f":"SUM(B4:B12)","v":0},{"$f":"SUM(C4:C12)","v":0},0]
["VAT @ 15 %",{"$f":"B13*15%","v":0},{"$f":"C13*15%","v":0},0]
["TOTAL BID PRICE INCL VAT",{"$f":"B13+B14","v":0},{"$f":"C13+C14","v":0},0]